bitfinex-derivatives/quotes_ETHF0:USTF0_20250902
["timestamp","ask_amount","ask_price","bid_price","bid_amount"]
[1756793087736,3.2078,4389.1,4389.0,0.7089]
[1756793089038,3.5217,4389.1,4389.0,0.7089]
[1756793089939,3.9227,4389.1,4389.0,0.7089]
[1756793090134,3.9227,4389.1,4389.0,0.9399]
[1756793091039,3.9227,4389.1,4389.0,0.6267]
[1756793091241,3.9227,4389.1,4389.0,0.4203]
[1756793092036,0.401,4389.1,4388.9,40.8]
[1756793092234,0.7149,4388.6,4388.5,3.7103]
[1756793092538,0.7149,4388.6,4388.5,4.1477]
[1756793092738,0.7149,4388.6,4388.5,44.9477]
[1756793095143,1.70231214,4388.6,4388.2,0.3132]
[1756793095333,1.70231214,4388.6,4388.3,0.231]
[1756793096038,1.70231214,4388.6,4387.7,0.7089]
[1756793096039,0.7149,4387.8,4387.7,0.7089]
[1756793096238,0.7149,4387.8,4387.7,0.9399]
[1756793096441,0.7149,4387.8,4387.7,0.231]
[1756793098037,3.9227,4387.8,4387.7,0.231]
[1756793099434,3.9227,4387.8,4387.0,0.3132]
[1756793099640,0.98741214,4387.4,4387.1,0.231]
[1756793099840,0.7149,4387.2,4387.1,0.4203]
[1756793100341,0.7149,4387.2,4387.1,0.231]
[1756793101037,0.7149,4387.2,4387.1,0.9399]
[1756793101643,0.7149,4387.2,4387.1,0.6267]
[1756793102539,0.7149,4387.2,4387.1,0.9399]
[1756793103742,0.7149,4387.2,4387.1,0.6267]
[1756793104145,0.7149,4387.2,4387.1,0.9399]
[1756793107441,3.2078,4387.8,4387.7,0.3957]
[1756793107746,0.3139,4387.9,4387.7,0.6267]
[1756793107940,0.5227,4387.9,4387.8,0.7089]
[1756793108536,4.50911214,4388.4,4387.9,0.3132]
[1756793108748,4.91011214,4388.4,4388.3,0.1893]
[1756793109441,4.91011214,4388.4,4388.3,0.5025]
[1756793109646,4.91011214,4388.4,4388.3,0.7089]
[1756793110047,3.9227,4388.4,4388.3,0.7089]
[1756793111351,4.1172886,4388.4,4388.3,0.7089]
[1756793111650,4.1172886,4388.4,4388.3,0.9399]
[1756793113050,3.4023886,4388.4,4388.3,0.9399]
[1756793113345,3.2078,4388.9,4388.8,0.2872]
[1756793113546,3.7047,4388.9,4388.8,0.9209]
[1756793113737,3.8967,4388.9,4388.8,0.9209]
[1756793113940,5.07871178,4388.9,4388.8,0.231]
[1756793114143,4.88411214,4388.9,4388.8,0.231]
[1756793114450,4.88411214,4388.9,4388.8,0.7217]
[1756793114749,4.88411214,4388.9,4388.8,0.9209]
[1756793115151,3.7047,4388.9,4388.8,0.9209]
[1756793115350,3.89931824,4388.9,4388.8,0.9209]
[1756793115550,4.09131824,4388.9,4388.8,0.9209]
[1756793115852,4.09131324,4388.9,4388.8,0.9209]
[1756793116252,0.6889,4388.9,4388.8,0.9209]
[1756793116445,0.88352914,4388.9,4388.8,0.9209]
[1756793116646,0.88352914,4388.9,4388.8,0.231]
[1756793116949,4.09132914,4388.9,4388.8,0.7217]
[1756793117247,5.07874839,4388.9,4388.8,0.9209]
[1756793118048,5.07874839,4388.9,4388.8,0.7217]
[1756793118450,5.07874839,4388.9,4388.8,0.9209]
[1756793118849,5.07874839,4388.9,4388.8,0.231]
[1756793119552,4.88348418,4388.9,4388.8,0.7217]
[1756793120142,4.88348418,4388.9,4388.8,0.4345]
[1756793120845,1.67568418,4388.9,4388.8,0.4345]
[1756793121757,1.67568418,4388.9,4388.8,0.9209]
[1756793123055,0.88353625,4388.9,4388.8,0.9209]
[1756793124154,3.2078,4389.4,4388.8,0.9209]
[1756793124155,0.4969,4389.3,4389.2,0.6899]
[1756793124354,0.88362769,4389.3,4389.2,0.6899]
[1756793124550,0.88362769,4389.3,4389.2,0.9209]
[1756793124750,1.67577562,4389.3,4389.2,0.9209]
[1756793125248,1.67577562,4389.3,4389.2,0.6337]
[1756793129854,1.67577562,4389.3,4389.2,0.4345]
[1756793130959,1.67577562,4389.3,4389.2,0.9209]
[1756793131162,0.88362769,4389.3,4389.2,0.9209]
[1756793131360,1.67577562,4389.3,4389.2,0.9209]
[1756793132459,1.48104793,4389.3,4389.2,0.9209]
[1756793132655,1.67573283,4389.3,4389.2,0.9209]
[1756793134558,1.67573283,4389.3,4389.2,0.4345]
[1756793136960,1.67573283,4389.3,4389.2,0.231]
[1756793137857,0.2926,4389.2,4388.5,0.2872]
[1756793138163,0.6889,4388.6,4388.5,0.4907]
[1756793138356,0.8835849,4388.6,4388.5,0.4907]
[1756793138662,0.8835849,4388.6,4388.5,0.4345]
[1756793139558,0.8835849,4388.6,4388.5,0.7217]
[1756793140456,0.8835849,4388.6,4388.5,0.4345]
[1756793141251,0.8835849,4388.6,4388.5,0.7279]
[1756793141859,0.8835849,4388.6,4388.5,1.71744793]
[1756793142956,0.8835849,4388.6,4388.5,0.9253]
[1756793143259,0.8767185,4388.6,4388.5,0.9253]
[1756793147465,0.8767185,4388.6,4388.5,0.4345]
[1756793147664,0.8767185,4388.6,4388.5,0.7279]
[1756793147864,0.8767185,4388.6,4388.5,0.9253]
[1756793148065,0.6847185,4388.6,4388.5,0.9253]
[1756793151473,0.1878185,4388.6,4388.5,0.9253]
[1756793153875,0.1878609,4389.0,4388.5,0.9253]
[1756793154073,0.4980609,4388.9,4388.8,0.688]
[1756793154272,0.4980609,4388.9,4388.8,0.919]
[1756793154572,0.7001609,4388.9,4388.8,0.919]
[1756793154874,0.9015609,4388.9,4388.8,0.919]
[1756793158575,0.9015609,4388.9,4388.7,0.79214793]
[1756793158779,0.6994609,4388.8,4388.7,0.688]
[1756793158981,0.9015609,4388.8,4388.7,0.919]
[1756793160276,0.1878609,4388.8,4388.7,0.919]
[1756793160581,0.7001609,4388.8,4388.7,0.919]
[1756793161574,0.3899609,4388.8,4388.7,0.919]
[1756793161985,0.3102,4389.3,4388.7,0.919]
[1756793162182,0.90152868,4389.2,4389.1,1.48014793]
[1756793162480,0.90152868,4389.2,4389.1,1.71114793]
[1756793162680,0.90152868,4389.2,4389.1,42.51114793]
[1756793164181,0.18782868,4389.2,4389.1,42.51114793]
[1756793164381,0.5123,4389.8,4389.7,0.3946]
[1756793164585,0.5123,4389.8,4389.7,1.71114793]
[1756793164988,0.3102,4390.1,4389.7,1.71114793]
[1756793165288,0.7137,4390.1,4390.0,1.48014793]
[1756793165484,0.2021,4390.1,4390.0,1.71114793]
[1756793165891,0.2021,4390.1,4390.0,42.51114793]
[1756793166289,0.5123,4390.1,4390.0,42.51114793]
[1756793166592,0.1,4390.2,4390.0,42.21774793]
[1756793166784,0.1,4390.2,4390.1,0.688]
[1756793167587,3.2078,4391.0,4390.1,1.48014793]
[1756793167788,3.2078,4391.0,4390.0,41.94784793]
[1756793167789,0.7137,4391.9,4391.8,0.1972]
[1756793167989,0.7137,4391.9,4391.8,1.22034793]
[1756793168190,0.7137,4391.9,4391.8,0.4282]
[1756793169192,0.3102,4391.8,4390.6,3.2078]
[1756793169387,8.22763793,4391.9,4390.6,3.2078]
[1756793169388,0.3102,4391.2,4391.1,0.1972]
[1756793169696,0.7137,4391.2,4391.1,0.919]
[1756793169893,0.79214793,4391.8,4391.1,0.919]
[1756793170094,0.5123,4391.3,4391.2,0.688]
[1756793170394,0.7137,4391.3,4391.2,0.688]
[1756793170997,0.7137,4391.3,4391.2,41.488]
[1756793172795,0.7137,4391.3,4391.2,41.1946]
[1756793172995,0.7137,4391.3,4391.2,41.4256]
[1756793173500,0.2989,4391.4,4391.2,41.4256]
[1756793173894,0.4888,4391.4,4391.3,0.7036]
[1756793174396,0.698,4391.4,4391.3,0.7036]
[1756793174893,0.698,4391.4,4391.3,0.9346]
[1756793175503,0.698,4391.4,4391.3,0.6296]
[1756793176395,0.698,4391.4,4391.3,0.9346]
[1756793176897,0.4888,4391.4,4391.3,0.9346]
[1756793177797,0.4888,4391.4,4391.3,0.2011]
[1756793177996,0.698,4391.4,4391.3,0.4311]
[1756793178389,0.3991,4391.4,4391.2,40.8]
[1756793178596,0.2989,4391.3,4391.2,40.8]
[1756793178794,0.2989,4391.3,4391.2,41.03]
[1756793179202,0.2989,4391.3,4391.2,41.335]
[1756793179599,0.2989,4391.8,4391.2,41.03]
[1756793179803,0.698,4391.8,4391.7,0.2011]
[1756793180096,0.698,4391.8,4391.7,0.4311]
[1756793181002,0.698,4391.8,4391.7,0.23]
[1756793186000,0.698,4391.8,4391.7,0.4311]
[1756793186403,1.68389662,4391.8,4391.7,0.23]
[1756793187005,1.68389662,4391.8,4391.2,40.8]
[1756793187208,0.698,4391.4,4391.3,0.23]
[1756793188807,0.2989,4391.3,4391.2,40.8]
[1756793189006,0.2989,4391.3,4391.2,41.03]
[1756793189206,0.2989,4391.3,4391.2,41.335]
[1756793189503,0.2989,4391.8,4391.2,41.03]
[1756793189706,0.698,4391.8,4391.7,0.7036]
[1756793189906,0.698,4391.8,4391.7,0.9336]
[1756793191304,0.698,4391.8,4391.7,0.4311]
[1756793193308,1.38527124,4391.8,4391.7,0.4311]
[1756793193711,0.698,4391.8,4391.7,0.4311]
[1756793194007,0.698,4391.8,4391.7,0.9336]
[1756793194206,1.38404382,4391.8,4391.7,0.9336]
[1756793197014,0.3465,4392.5,4391.7,0.9336]
[1756793197015,0.698,4392.4,4392.3,0.2011]
[1756793197308,1.38456306,4392.4,4392.3,0.2011]
[1756793197810,0.68656306,4392.4,4392.3,4.93126999]
[1756793198010,3.6069,4393.1,4393.0,0.2011]
[1756793198312,4.59253338,4393.1,4393.0,41.2321]
[1756793198502,4.59253338,4393.1,4393.0,0.2011]
[1756793198816,4.59253338,4393.1,4393.0,0.231]
[1756793199111,4.59253338,4393.1,4392.9,0.211]
[1756793199411,1.38473338,4393.0,4392.9,0.4121]
[1756793200303,0.698,4393.0,4392.9,0.9146]
[1756793201217,1.3825336,4393.0,4392.5,0.2861]
[1756793201417,0.698,4393.0,4392.6,0.231]
[1756793201612,0.3991,4393.0,4392.6,0.5171]
[1756793201807,0.2827,4392.9,4392.6,0.5171]
[1756793202017,0.6767,4392.7,4392.6,0.7145]
[1756793202422,0.6767,4392.7,4392.6,0.4284]
[1756793202720,0.6767,4392.7,4392.6,0.9235]
[1756793204022,0.2827,4392.6,4392.2,40.8]
[1756793204215,0.2827,4392.6,4392.2,41.0861]
[1756793204216,0.6767,4392.3,4392.2,41.0861]
[1756793204417,0.6767,4392.3,4392.2,40.8]
[1756793204720,0.6767,4392.3,4392.2,41.031]
[1756793204920,0.6767,4392.3,4392.2,41.3171]
[1756793205518,0.486,4392.3,4392.2,41.3171]
[1756793205716,3.4111,4392.6,4392.5,0.6925]
[1756793205922,3.6018,4392.6,4392.5,0.9235]
[1756793206122,3.8845,4392.6,4392.5,0.6374]
[1756793207123,3.8845,4392.6,4392.5,0.9235]
[1756793207518,3.2078,4393.3,4392.5,0.6374]
[1756793207723,1.36046933,4393.2,4393.1,0.1974]
[1756793209026,1.36046933,4393.2,4393.0,0.231]
[1756793209226,0.6767,4393.2,4392.8,0.2861]
[1756793209425,0.6767,4393.2,4392.9,0.231]
[1756793209820,0.6767,4393.2,4393.1,0.6925]
[1756793210323,3.2078,4393.8,4393.1,1.67839662]
[1756793210626,3.6938,4393.8,4393.7,0.6925]
[1756793210819,3.6938,4393.8,4393.7,0.9235]
[1756793211223,0.2827,4394.8,4393.8,0.2861]
[1756793211427,0.486,4393.9,4393.8,1.67839662]
[1756793211726,0.486,4393.9,4393.8,42.71039662]
[1756793212123,3.2078,4394.9,4393.8,41.4925]
[1756793212422,0.486,4394.0,4393.9,0.9245]
[1756793212622,0.486,4394.0,4393.9,0.4064]
[1756793212623,0.6767,4394.0,4393.9,0.4064]
[1756793212828,0.6767,4394.0,4393.9,0.9245]
[1756793213024,0.6767,4394.0,4393.8,40.8]
[1756793213025,0.394,4394.0,4393.8,40.8]
[1756793213321,0.6767,4393.2,4393.1,0.6925]
[1756793213522,0.486,4393.2,4393.1,0.9245]
[1756793213724,0.486,4393.2,4393.1,41.7245]
[1756793214928,3.2078,4393.9,4393.1,41.4384]
[1756793215131,0.6767,4393.8,4393.7,0.6925]
[1756793215326,0.6767,4393.8,4393.7,0.9245]
[1756793215530,3.4905,4393.9,4393.7,0.6384]
[1756793215726,3.2078,4393.9,4393.8,0.6925]
[1756793215928,3.4905,4393.9,4393.8,0.6925]
[1756793216127,3.6938,4393.9,4393.8,0.6925]
[1756793216323,0.6767,4394.4,4394.3,0.1974]
[1756793216527,0.6767,4394.4,4394.3,0.232]
[1756793218334,0.6767,4394.4,4394.3,0.4294]
[1756793220729,0.6767,4394.4,4394.3,0.232]
[1756793220931,0.6767,4394.4,4394.3,0.9245]
[1756793221233,0.486,4394.4,4394.3,0.9245]
[1756793221530,0.6767,4394.4,4394.3,0.6384]
[1756793221927,0.6767,4394.4,4394.3,41.4384]
[1756793222530,0.6767,4394.4,4394.3,41.7245]
[1756793222735,3.4905,4394.5,4394.3,41.4384]
[1756793222939,3.6938,4394.5,4394.4,0.6925]
[1756793223434,3.6938,4394.5,4394.4,1.67839662]
[1756793223633,3.2078,4394.5,4394.4,1.67839662]
[1756793224035,3.6938,4394.5,4394.4,0.6925]
[1756793225130,3.8845,4394.5,4394.4,0.9245]
[1756793225525,3.6938,4394.5,4394.4,0.9245]
[1756793225835,3.2078,4394.5,4394.4,0.9245]
[1756793226035,3.6938,4394.5,4394.4,0.9245]
[1756793226238,3.2078,4394.5,4394.4,0.9245]
[1756793226634,1.7,4395.3,4395.2,0.4064]
[1756793226932,0.35872229,4395.3,4395.2,1.91039662]
[1756793227132,0.35872229,4395.3,4395.2,46.71039662]
[1756793227432,3.8845,4396.9,4396.8,0.4064]
[1756793227735,3.8845,4396.9,4396.8,0.9245]
[1756793228131,3.2078,4396.9,4396.8,1.91039662]
[1756793228325,1.63729187,4398.9,4396.8,1.91039662]
[1756793228326,3.2078,4398.4,4398.3,0.6925]
[1756793228525,0.00401065,4399.0,4398.3,0.6925]
[1756793228526,0.93110345,4398.6,4398.5,0.6925]
[1756793228729,0.394,4397.7,4397.6,3.6142]
[1756793229039,0.6767,4397.7,4397.6,0.4304]
[1756793229236,3.2078,4398.0,4397.7,0.2861]
[1756793229532,0.486,4398.4,4398.3,0.6925]
[1756793229738,0.72780345,4398.6,4398.5,0.6925]
[1756793229931,0.72780345,4398.6,4398.5,0.8022]
[1756793230136,0.72780345,4398.6,4398.5,41.6022]
[1756793230331,0.2827,4398.9,4398.5,40.8]
[1756793230531,0.2827,4398.8,4398.5,40.8]
[1756793230726,3.3283,4399.0,4398.5,40.8]
[1756793230727,0.6767,4398.6,4398.5,40.8]
[1756793232042,0.6831,4397.7,4397.6,0.6289]
[1756793232234,0.6831,4398.4,4398.3,0.1924]
[1756793232531,0.6831,4397.9,4397.8,40.8]
[1756793232742,3.8909,4397.9,4397.8,41.034]
[1756793233439,0.482,4398.4,4398.3,0.1924]
[1756793233636,0.482,4398.4,4398.3,0.4264]
[1756793233839,0.6831,4398.4,4398.3,0.4264]
[1756793234132,0.6831,4398.4,4398.3,0.6289]
[1756793235334,0.6831,4398.4,4398.3,0.234]
[1756793235845,0.197,4397.9,4397.8,40.8]
[1756793236034,0.482,4397.9,4397.8,41.3355]
[1756793236338,0.285,4398.3,4397.8,41.3355]
[1756793236538,0.482,4398.3,4398.2,0.3949]
[1756793236739,0.6831,4398.3,4398.2,0.6289]
[1756793236934,0.482,4398.3,4398.2,0.6289]
[1756793237139,0.482,4398.3,4398.2,0.9304]
[1756793237538,1.15352867,4398.3,4398.2,0.9304]
[1756793237737,0.482,4398.3,4398.2,0.9304]
[1756793238338,0.86837782,4398.3,4398.2,0.9304]
[1756793238535,3.2078,4399.0,4398.3,0.3015]
[1756793238732,3.2078,4399.0,4398.2,0.6289]
[1756793238733,0.6714693,4398.9,4398.8,0.6964]
[1756793238933,3.2078,4399.0,4398.9,0.6964]
[1756793239135,3.87897472,4399.0,4398.9,41.4964]
[1756793239839,3.2078,4399.0,4398.9,41.4964]
[1756793240436,0.285,4399.5,4398.9,41.4964]
[1756793240936,0.482,4399.0,4398.9,41.1949]
[1756793241135,0.602,4399.0,4398.9,41.034]
[1756793241338,1.27316866,4399.0,4398.9,41.034]
[1756793241742,1.27316866,4399.0,4398.9,40.8]
[1756793241937,0.285,4398.8,4398.3,0.3015]
[1756793242138,0.6831,4398.8,4398.7,0.234]
[1756793242336,1.35430366,4398.8,4398.7,0.234]
[1756793242537,1.35430366,4398.8,4398.7,0.4264]
[1756793242733,1.35430366,4398.8,4398.7,0.234]
[1756793243041,1.15320366,4398.8,4398.7,0.9304]
[1756793243238,0.86820366,4398.8,4398.7,0.9304]
[1756793243541,0.95620366,4398.8,4398.7,0.9304]
[1756793243742,1.15320366,4398.8,4398.7,0.9304]
[1756793243942,1.35430366,4398.8,4398.7,0.6289]
[1756793244549,1.35430366,4398.8,4398.7,41.034]
[1756793244738,1.35430366,4398.8,4398.5,0.234]
[1756793245044,3.8909,4398.6,4398.5,0.234]
[1756793245245,4.56210366,4398.6,4398.5,0.234]
[1756793248940,4.56210366,4398.6,4398.1,40.8]
[1756793248941,0.285,4398.5,4398.1,40.8]
[1756793249146,0.6831,4398.3,4398.2,0.4264]
[1756793249346,1.35430366,4398.3,4398.2,0.4264]
[1756793249650,0.285,4398.2,4398.1,40.8]
[1756793249949,0.95620366,4398.2,4398.1,41.034]
[1756793250149,1.35430366,4398.2,4398.1,0.234]
[1756793250847,0.3981,4397.6,4397.5,40.8]
[1756793251047,0.3981,4397.6,4396.5,0.3015]
[1756793251048,0.6831,4397.0,4396.5,0.3015]
[1756793251239,1.35430366,4397.0,4396.5,0.3015]
[1756793251436,1.35430366,4397.0,4396.9,73.806]
[1756793252045,4.56210366,4397.0,4396.9,41.034]
[1756793252449,4.56210366,4397.0,4396.3,3.2078]
[1756793252450,4.39710366,4397.0,4396.3,3.2078]
[1756793252747,0.6831,4396.2,4396.1,0.3949]
[1756793252946,1.35430366,4396.2,4396.1,0.6289]
[1756793253649,1.35430366,4396.2,4396.1,0.4264]
[1756793253943,1.06930366,4396.2,4396.1,0.234]
[1756793254141,0.6831,4395.9,4395.8,40.8]
[1756793254451,4.56210366,4395.9,4395.8,41.034]
[1756793254643,4.56210366,4395.9,4395.8,40.8]
[1756793254846,4.56210366,4395.9,4395.6,0.234]
[1756793255045,1.9110689,4395.7,4394.9,0.3015]
[1756793255245,1.9110689,4395.7,4394.3,2.80247577]
[1756793255246,3.6898,4395.3,4395.2,0.6964]
[1756793255552,0.67120366,4395.3,4395.2,0.9304]
[1756793256452,1.15320366,4395.3,4395.2,0.9304]
[1756793257047,0.285,4395.2,4395.0,40.8]
[1756793257246,0.95620366,4395.1,4395.0,40.8]
[1756793257451,0.95620366,4395.1,4395.0,41.034]
[1756793259144,0.95620366,4395.1,4395.0,40.8]
[1756793259455,0.95620366,4395.1,4395.0,41.034]
[1756793259751,0.95620366,4395.1,4394.1,3.6027]
[1756793259752,0.197,4394.2,4394.1,3.6027]
[1756793259956,0.482,4394.1,4394.0,0.3949]
[1756793260253,0.6831,4394.1,4394.0,0.6289]
[1756793260847,0.6831,4394.1,4394.0,0.3949]
[1756793261052,1.34631273,4394.1,4394.0,0.4264]
[1756793261249,0.2877,4394.4,4394.0,0.234]
[1756793261450,3.2078,4394.9,4394.3,0.6868]
[1756793261646,0.234,4395.1,4394.7,0.6868]
[1756793261647,0.66267075,4394.8,4394.7,0.6868]
[1756793261848,0.6726,4395.1,4395.0,0.3947]
[1756793262056,1.33520613,4395.1,4395.0,0.234]
[1756793262350,1.33520613,4395.1,4395.0,0.4297]
[1756793262553,1.33520613,4395.1,4395.0,0.9208]
[1756793262755,0.85260613,4395.1,4395.0,0.9208]
[1756793263054,0.66260613,4395.1,4395.0,0.9208]
[1756793263250,0.19,4395.2,4395.1,0.2921]
[1756793263456,0.4777,4395.2,4395.1,0.6868]
[1756793263652,1.13849861,4395.2,4395.1,0.6868]
[1756793264152,1.33339861,4395.2,4395.1,0.3947]
[1756793264356,1.33339861,4395.2,4394.9,0.234]
[1756793264559,0.6726,4395.0,4394.9,0.6287]
[1756793264760,0.2877,4395.3,4394.9,0.6287]
[1756793264953,0.4777,4395.3,4395.2,0.6868]
[1756793266358,0.6726,4395.3,4395.2,0.3947]
[1756793266752,0.6726,4395.3,4394.0,2.91297577]
[1756793266956,0.2877,4395.3,4394.2,0.2921]
[1756793267156,0.6726,4395.3,4395.2,0.1957]
[1756793267362,0.4777,4395.3,4395.2,0.6868]
[1756793267561,3.2078,4395.4,4395.3,0.2921]
[1756793267763,3.2078,4395.4,4395.3,0.6868]
[1756793268260,3.6855,4395.4,4395.3,0.6868]
[1756793269864,3.8804,4395.4,4395.3,0.3947]
[1756793270959,3.8804,4395.4,4395.3,0.4297]
[1756793274058,3.8804,4395.4,4395.3,0.234]
[1756793274963,3.8804,4395.4,4394.6,0.2921]
[1756793275166,0.19,4394.8,4394.7,0.85523]
[1756793275365,0.4777,4394.8,4394.7,1.14733]
[1756793275567,0.4777,4394.8,4394.7,0.9198]
[1756793276067,0.2877,4395.3,4394.7,0.9198]
[1756793276268,0.2877,4395.3,4394.8,0.2921]
[1756793276463,0.2877,4395.3,4395.2,0.1957]
[1756793276464,0.6726,4395.3,4395.2,0.1957]
[1756793276663,0.6726,4395.3,4395.2,0.4287]
[1756793277768,0.19,4395.3,4395.2,0.9198]
[1756793278272,0.4777,4395.3,4395.2,0.9198]
[1756793278972,0.4777,4395.3,4395.2,41.7198]
[1756793279770,0.4777,4395.3,4395.2,41.4277]
[1756793280171,1.14298492,4395.3,4395.2,41.7198]
[1756793282269,3.2078,4395.9,4395.8,0.3947]
[1756793282468,3.87420205,4395.9,4395.8,0.9198]
[1756793282968,3.87420205,4395.9,4395.8,7.94976577]
[1756793283272,0.19,4397.0,4396.9,0.3947]
[1756793283473,0.19,4397.0,4396.9,41.7198]
[1756793284369,3.3978,4397.3,4397.2,0.6868]
[1756793284578,3.3978,4397.3,4397.2,0.9198]
[1756793285170,3.2078,4397.3,4397.2,0.9198]
[1756793285372,3.2078,4397.3,4397.2,1.14720999]
[1756793285876,3.2078,4397.3,4397.2,0.9198]
[1756793286376,3.2078,4398.1,4397.3,0.2921]
[1756793286677,3.3978,4398.1,4398.0,0.6868]
[1756793286878,0.19,4398.1,4398.0,0.9198]
[1756793287275,0.19,4398.1,4398.0,41.7198]
[1756793287773,3.4955,4398.7,4398.1,0.2921]
[1756793287975,3.8804,4398.7,4398.6,0.4878]
[1756793288480,0.6726,4398.7,4398.6,0.4878]
[1756793289070,0.6726,4398.7,4398.6,0.6868]
[1756793289280,0.2877,4399.1,4398.7,0.2921]
[1756793289478,0.4777,4399.1,4399.0,0.6868]
[1756793289676,0.6726,4399.1,4399.0,0.6868]
[1756793289877,0.6726,4399.1,4399.0,0.233]
[1756793290378,0.6726,4399.1,4399.0,0.9198]
[1756793290684,0.19,4399.1,4399.0,0.9198]
[1756793291372,3.2078,4399.8,4398.8,3.2078]
[1756793291572,0.7017,4399.2,4399.1,0.4761]
[1756793291773,0.7017,4399.2,4399.1,41.033]
[1756793292580,0.7017,4399.2,4399.1,41.316]
[1756793293381,0.7017,4399.2,4399.1,41.033]
[1756793294372,0.7017,4399.2,4399.1,41.316]
[1756793295376,0.7017,4399.2,4399.1,40.8]
[1756793295685,0.7017,4399.2,4399.1,41.033]
[1756793295983,0.7017,4399.2,4399.1,41.316]
[1756793296180,0.7017,4399.2,4399.1,0.8976]
[1756793296385,0.7017,4399.2,4399.1,0.6646]
[1756793296585,0.7017,4399.2,4399.1,0.8976]
[1756793297585,0.7017,4399.1,4399.0,0.1931]
[1756793297780,0.7017,4399.1,4399.0,0.7091]
[1756793297980,0.7017,4399.1,4399.0,0.8976]
[1756793298787,0.3921,4399.1,4399.0,0.8976]
[1756793299287,0.1994,4399.1,4399.0,0.8976]
[1756793299483,3.5174,4399.8,4399.1,0.283]
[1756793299787,3.5174,4399.8,4399.0,0.7316]
[1756793299788,3.9095,4399.8,4399.7,0.6646]
[1756793299989,3.9095,4399.8,4399.7,0.8986]
[1756793300887,3.4072,4399.8,4399.7,0.8986]
[1756793301187,0.2994,4400.2,4400.1,0.6646]
[1756793301392,0.2994,4400.2,4400.1,0.8976]
[1756793301594,0.4921,4400.2,4400.1,0.8976]
[1756793301887,5.02896001,4400.2,4400.1,40.8]
[1756793302079,0.1994,4399.7,4399.6,0.8986]
[1756793302280,0.1,4400.2,4400.1,0.6646]
[1756793302480,0.1,4400.2,4400.1,41.6986]
[1756793305288,0.4096,4400.2,4400.1,41.4646]
[1756793305591,0.4096,4400.2,4400.1,41.6986]
[1756793305987,0.4096,4400.2,4400.1,41.4646]
[1756793306186,0.4096,4400.2,4400.1,41.6986]
[1756793306392,0.4096,4400.2,4400.1,41.4646]
[1756793306590,0.4096,4400.2,4400.1,41.6986]
[1756793306792,0.8017,4400.2,4400.1,0.234]
[1756793307293,0.8017,4400.2,4400.1,0.7101]
[1756793307496,0.8017,4400.2,4400.1,0.8986]
[1756793310395,0.1,4400.2,4400.1,0.8986]
[1756793310595,0.1,4400.2,4400.1,4.1064]
[1756793311800,0.1,4400.2,4400.1,3.8724]
[1756793311990,0.1,4400.2,4400.1,4.1064]
[1756793312301,0.7392178,4400.2,4400.1,0.6646]
[1756793312498,0.7392178,4400.2,4400.1,0.8986]
[1756793312688,0.9386178,4400.2,4400.1,0.8986]
[1756793312892,0.7392178,4400.2,4400.1,0.8986]
[1756793313094,0.9386178,4400.2,4400.1,0.8986]
[1756793313294,0.7392178,4400.2,4400.1,0.8986]
[1756793313805,3.2078,4401.2,4400.1,7.8234]
[1756793314100,0.7017,4401.1,4400.2,0.0076]
[1756793314300,3.2078,4401.2,4400.8,0.0122]
[1756793314301,0.509,4400.9,4400.8,0.0122]
[1756793314595,0.7017,4400.9,4400.8,41.0472]
[1756793314996,0.7017,4400.9,4400.8,40.8122]
[1756793315302,0.7017,4400.9,4400.8,41.0472]
[1756793316196,3.2078,4401.2,4400.9,0.0122]
[1756793316494,3.2078,4401.2,4400.8,41.035]
[1756793316495,0.7017,4401.1,4401.0,0.235]
[1756793317403,0.8217,4401.0,4400.9,0.235]
[1756793319697,0.12,4400.5,4399.6,3.2078]
[1756793319893,0.7017,4399.7,4399.6,0.0264]
[1756793320092,0.3921,4399.7,4399.0,3.2078]
[1756793320300,0.509,4399.3,4399.2,41.035]
[1756793321998,0.509,4399.3,4399.2,40.8]
[1756793322204,0.509,4399.3,4399.2,41.035]
[1756793322998,0.6974,4399.3,4399.2,0.235]
[1756793323199,0.3878,4399.3,4399.2,0.0124]
[1756793323405,0.3878,4399.3,4399.2,0.2474]
[1756793323810,0.6936,4399.3,4399.2,0.2474]
[1756793324603,0.6936,4399.3,4399.2,0.2598]
[1756793325502,0.3058,4399.3,4399.2,0.2676]
[1756793325800,0.3058,4399.9,4399.2,0.2676]
[1756793326006,0.62883675,4399.8,4399.7,0.0248]
[1756793326205,0.62883675,4399.8,4399.7,0.2598]
[1756793326402,0.3058,4400.4,4399.7,4.2676]
[1756793326710,3.2078,4400.8,4399.7,4.2676]
[1756793326711,0.62890485,4400.3,4400.1,0.0248]
[1756793327007,0.93470485,4400.2,4400.1,0.0248]
[1756793327203,0.62890485,4400.2,4400.1,0.2598]
[1756793327405,0.62522083,4400.2,4400.1,0.2676]
[1756793327704,0.3058,4400.2,4400.1,41.0598]
[1756793328099,0.3058,4400.2,4400.1,41.0676]
[1756793328508,0.3058,4400.2,4400.1,41.0598]
[1756793329408,0.3058,4400.2,4400.1,40.8248]
[1756793329602,0.3058,4400.2,4400.1,41.0598]
[1756793330003,0.3058,4400.2,4400.1,40.8]
[1756793330204,0.92854161,4400.2,4400.1,41.034]
[1756793330604,1.31894161,4400.2,4400.1,0.234]
[1756793330800,0.3058,4400.1,4399.3,3.2078]
[1756793331000,0.3058,4399.9,4399.8,0.0248]